bitfinex/quotes_SOLUSD_20250621
["timestamp","ask_amount","ask_price","bid_price","bid_amount"]
[1750530639046,9.80587355,139.0,138.99,7.19476221]
[1750530639961,9.80587355,139.0,138.94,17.99231515]
[1750530639962,26.0,138.98,138.94,17.99231515]
[1750530640157,26.71,138.96,138.95,7.19683339]
[1750530640437,35.80587355,138.96,138.95,7.19683339]
[1750530641441,0.71,138.95,138.92,6.3]
[1750530641612,9.09587355,138.94,138.92,6.3]
[1750530642034,9.80587355,138.94,138.93,7.19786943]
[1750530645042,35.80587355,138.94,138.93,7.19786943]
[1750530646846,26.0,138.94,138.93,7.19786943]
[1750530647549,26.68,138.94,138.93,7.19786943]
[1750530648024,35.77587355,138.94,138.93,7.19786943]
[1750530648226,0.68,138.93,138.92,13.49820894]
[1750530648441,9.77587355,138.93,138.92,13.49820894]
[1750530649435,9.77587355,138.93,138.92,7.19820894]
[1750530649637,26.68,138.91,138.9,7.19942404]
[1750530649828,35.77587355,138.91,138.9,7.19942404]
[1750530650025,9.77587355,138.91,138.9,7.19942404]
[1750530650630,0.68,138.9,138.88,7.20046082]
[1750530650832,9.09587355,138.9,138.88,7.20046082]
[1750530651030,148.0,138.92,138.89,9.09587355]
[1750530652527,26.0,138.94,138.92,7.19838756]
[1750530653348,26.0,138.93,138.92,7.19838756]
[1750530655741,26.0,138.93,138.91,25.19577052]
[1750530656757,26.0,138.92,138.91,25.19577052]
[1750530658262,148.68,138.96,138.91,34.29164407]
[1750530658439,157.77587355,138.96,138.92,9.09587355]
[1750530658761,157.77587355,138.96,138.91,34.29164407]
[1750530658762,183.77587355,138.96,138.91,34.29164407]
[1750530659067,9.77587355,138.95,138.91,34.29164407]
[1750530659240,174.0,138.96,138.91,34.29164407]
[1750530659241,0.68,138.93,138.91,25.19577052]
[1750530659445,9.77587355,138.95,138.91,25.19577052]
[1750530659631,9.09587355,138.95,138.91,34.29164407]
[1750530660150,9.77587355,138.95,138.91,34.29164407]
[1750530660461,0.68,138.95,138.91,34.29164407]
[1750530661272,174.0,138.96,138.92,9.09587355]
[1750530661453,174.0,138.96,138.93,9.09587355]
[1750530662470,174.0,138.96,138.94,7.19735137]
[1750530663070,174.0,138.96,138.94,16.29322492]
[1750530664570,174.0,138.96,138.94,7.19735137]
[1750530664571,0.68,138.95,138.94,7.19735137]
[1750530664744,9.77587355,138.95,138.94,7.19735137]
[1750530665063,0.68,138.95,138.94,7.19735137]
[1750530665568,183.09587355,138.96,138.94,7.19735137]
[1750530665743,174.0,138.96,138.94,16.29322492]
[1750530667266,174.68,138.96,138.94,7.19735137]
[1750530667570,174.68,138.96,138.78,85.93988635]
[1750530667571,26.68,138.93,138.92,7.19838756]
[1750530667871,35.77587355,138.93,138.92,7.19838756]
[1750530668549,35.09587355,138.93,138.89,25.1996657]
[1750530668768,0.68,138.92,138.89,25.1996657]
[1750530669257,35.77587355,138.92,138.89,25.1996657]
[1750530670073,35.09587355,138.92,138.89,25.1996657]
[1750530670685,26.0,138.92,138.89,34.29553925]
[1750530671566,26.0,138.92,138.9,9.09587355]
[1750530671881,148.0,138.95,138.91,9.09587355]
[1750530672069,0.68,138.94,138.91,9.09587355]
[1750530672377,9.77587355,138.94,138.9,27.74552241]
[1750530673360,0.68,138.94,138.91,25.19617017]
[1750530674262,174.0,138.95,138.92,9.09587355]
[1750530674582,174.69,138.95,138.92,9.09587355]
[1750530674754,174.0,138.95,138.92,9.09587355]
[1750530675666,174.0,138.95,138.93,7.19786943]
[1750530676058,0.69,138.94,138.93,7.19786943]
[1750530676252,174.0,138.95,138.93,7.19786943]
[1750530676253,174.69,138.95,138.93,7.19786943]
[1750530676655,0.69,138.94,138.93,7.19786943]
[1750530677676,0.69,138.94,138.91,25.19617017]
[1750530678070,0.69,138.94,138.91,34.29204372]
[1750530678959,183.09587355,138.95,138.91,25.19617017]
[1750530679160,0.69,138.92,138.91,7.19890576]
[1750530679480,35.09587355,138.92,138.91,7.19890576]
[1750530679687,35.78587355,138.92,138.91,7.19890576]
[1750530679856,35.09587355,138.92,138.89,25.19964466]
[1750530680057,9.78587355,138.91,138.89,25.19964466]
[1750530680658,0.69,138.9,138.89,7.1999424]
[1750530680863,9.78587355,138.9,138.89,7.1999424]
[1750530681385,9.09587355,138.9,138.86,7.20149791]
[1750530681577,9.09587355,138.88,138.86,7.20149791]
[1750530681765,9.78587355,138.88,138.86,7.20149791]
[1750530682268,9.78587355,138.87,138.86,7.20149791]
[1750530682468,9.09587355,138.87,138.85,13.5018037]
[1750530682687,9.78587355,138.86,138.85,13.5018037]
[1750530683256,35.09587355,138.86,138.84,7.20251308]
[1750530683478,9.78587355,138.85,138.84,7.20251308]
[1750530684293,9.78587355,138.85,138.8,24.31068636]
[1750530684294,26.0,138.86,138.82,9.09587355]
[1750530685075,148.0,138.88,138.84,9.09587355]
[1750530685277,174.0,138.88,138.84,9.09587355]
[1750530685478,183.09587355,138.88,138.84,9.09587355]
[1750530685777,183.78587355,138.88,138.84,9.09587355]
[1750530686188,183.78587355,138.88,138.85,25.20705797]
[1750530686484,174.69,138.88,138.85,25.20705797]
[1750530687492,183.78587355,138.88,138.85,25.20705797]
[1750530688173,174.69,138.88,138.85,25.20705797]
[1750530688377,183.78587355,138.88,138.85,25.20705797]
[1750530688877,174.69,138.88,138.85,25.20705797]
[1750530689696,183.78587355,138.88,138.85,25.20705797]
[1750530690287,183.78587355,138.88,138.85,7.20201656]
[1750530690288,9.78587355,138.87,138.85,7.20201656]
[1750530690493,0.69,138.86,138.85,7.20201656]
[1750530691298,9.78587355,138.86,138.85,7.20201656]
[1750530691495,0.69,138.84,138.78,61.88354422]
[1750530691801,174.0,138.85,138.79,15.39587355]
[1750530691802,9.09587355,138.83,138.79,15.39587355]
[1750530692096,9.78587355,138.83,138.79,15.39587355]
[1750530692399,9.78587355,138.83,138.8,7.20461095]
[1750530693176,0.69,138.82,138.8,25.21613832]
[1750530693378,0.69,138.82,138.8,7.20461095]
[1750530693379,0.69,138.81,138.8,7.20461095]
[1750530693784,9.78587355,138.81,138.8,7.20461095]
[1750530694099,0.69,138.81,138.8,7.20461095]
[1750530694285,9.78587355,138.82,138.8,7.20461095]
[1750530694897,0.69,138.8,138.79,13.50491718]
[1750530695197,9.78587355,138.8,138.79,13.50491718]
[1750530696075,148.0,138.79,138.74,46.66]
[1750530696405,9.78587355,138.77,138.74,25.22588738]
[1750530696982,0.69,138.76,138.74,25.22588738]
[1750530698800,9.09587355,138.77,138.74,25.22588738]
[1750530699097,148.0,138.79,138.75,9.09587355]
[1750530699479,148.0,138.79,138.76,9.09587355]
[1750530700786,148.0,138.79,138.76,15.15266742]
[1750530701909,148.0,138.79,138.77,7.20616848]
[1750530703211,148.69,138.79,138.77,7.20616848]
[1750530703579,148.69,138.78,138.77,7.20616848]
[1750530703884,148.69,138.78,138.76,25.22302189]
[1750530705082,0.68,138.77,138.76,25.22302189]
[1750530706209,15.83266742,138.77,138.75,7.2072072]
[1750530706394,0.68,138.76,138.75,7.2072072]
[1750530706800,15.83266742,138.76,138.75,7.2072072]
[1750530708218,26.68,138.77,138.74,40.37929262]
[1750530708523,26.68,138.77,138.74,25.2266252]
[1750530708820,0.68,138.76,138.74,25.2266252]
[1750530711421,41.15266742,138.77,138.74,25.2266252]
[1750530711587,148.0,138.78,138.76,15.15266742]
[1750530714025,148.0,138.78,138.77,22.3588359]
[1750530716500,163.15266742,138.78,138.75,7.2072072]
[1750530716809,0.68,138.77,138.75,7.2072072]
[1750530717022,0.68,138.77,138.75,22.35987462]
[1750530717394,0.68,138.77,138.75,7.2072072]
[1750530721307,157.09419666,138.78,138.75,7.2072072]
[1750530721814,0.68,138.77,138.75,7.2072072]
[1750530722312,9.09419666,138.77,138.75,7.2072072]
[1750530722526,0.68,138.76,138.75,7.2072072]
[1750530722729,157.09419666,138.78,138.74,34.32082186]
[1750530723036,148.68,138.78,138.75,9.09419666]
[1750530723330,148.0,138.78,138.77,9.09419666]
[1750530723703,148.0,138.78,138.76,9.09419666]
[1750530723907,148.68,138.78,138.75,38.51419666]
[1750530724325,148.68,138.78,138.76,9.09419666]
[1750530724826,148.68,138.78,138.77,7.20616848]
[1750530727323,148.0,138.78,138.77,7.20616848]
[1750530729338,148.68,138.78,138.77,7.20616848]
[1750530730337,148.68,138.78,138.76,7.2066878]
[1750530731023,9.09419666,138.77,138.72,24.32175793]
[1750530731221,9.77419666,138.75,138.72,24.32175793]
[1750530731425,0.68,138.75,138.72,33.41595459]
[1750530731616,174.0,138.76,138.72,33.41595459]
[1750530731818,174.68,138.76,138.72,33.41595459]
[1750530732118,183.77419666,138.76,138.72,33.41595459]
[1750530732446,174.68,138.76,138.72,40.62472044]
[1750530732647,174.68,138.76,138.73,9.09419666]
[1750530732958,174.0,138.76,138.74,9.09419666]
[1750530733739,174.0,138.76,138.75,9.09419666]
[1750530733740,148.0,138.76,138.75,9.09419666]
[1750530734054,26.0,138.79,138.75,9.09419666]
[1750530734347,26.0,138.78,138.77,9.09419666]
[1750530734716,26.0,138.78,138.77,7.20616848]
[1750530736824,26.74,138.78,138.77,7.20616848]
[1750530738452,26.74,138.78,138.76,16.30088446]
[1750530738747,26.74,138.78,138.76,7.2066878]
[1750530738946,26.74,138.78,138.76,16.30088446]
[1750530741915,148.0,138.77,138.75,7.20698007]
[1750530742116,26.0,138.75,138.7,15.39419666]
[1750530742316,5.38647662,138.74,138.7,15.39419666]
[1750530742523,0.74,138.74,138.7,6.3]
[1750530742845,0.74,138.73,138.71,7.20928555]
[1750530743839,26.74,138.73,138.71,7.20928555]
[1750530744043,26.0,138.73,138.71,34.3266961]
[1750530745147,26.0,138.75,138.72,9.09419666]
[1750530745339,26.0,138.75,138.73,9.09419666]
[1750530746043,0.74,138.77,138.74,9.09419666]
[1750530746342,26.74,138.77,138.74,9.09419666]
[1750530746519,26.0,138.77,138.74,9.09419666]
[1750530746716,0.74,138.76,138.73,9.09419666]
[1750530747148,0.74,138.76,138.74,7.20772668]
[1750530747447,2.3168,138.8,138.75,9.09419666]
[1750530747660,157.09419666,138.81,138.79,9.09419666]
[1750530747661,148.0,138.81,138.79,9.09419666]
[1750530747870,5.38691915,138.8,138.79,9.09419666]
[1750530748542,148.0,138.81,138.79,9.09419666]
[1750530748743,148.74,138.81,138.79,9.09419666]
[1750530749255,148.74,138.81,138.8,7.20461095]
[1750530749437,154.12656379,138.81,138.8,7.20461095]
[1750530750228,148.74,138.81,138.8,7.20461095]
[1750530750756,148.0,138.81,138.8,16.29880761]
[1750530751530,26.74,138.84,138.8,16.29880761]
[1750530751531,26.74,138.84,138.8,34.31033498]
[1750530751729,0.74,138.84,138.82,9.09419666]
[1750530752050,26.0,138.83,138.82,9.09419666]
[1750530752757,26.74,138.83,138.82,7.20357297]
[1750530752940,0.74,138.82,138.79,7.20513005]
[1750530753350,35.09419666,138.83,138.79,16.29932671]
[1750530753867,0.74,138.82,138.79,16.29932671]
[1750530754046,35.09419666,138.83,138.79,16.29932671]
[1750530754428,0.74,138.82,138.79,16.29932671]
[1750530755172,35.09419666,138.82,138.79,7.20513005]
[1750530755463,0.74,138.81,138.79,7.20513005]
[1750530755832,35.09419666,138.82,138.79,7.20513005]
[1750530756528,0.74,138.81,138.79,7.20513005]
[1750530756949,35.09419666,138.82,138.78,7.20564922]
[1750530757151,35.09419666,138.82,138.78,16.29984588]
[1750530757360,0.74,138.81,138.78,16.29984588]
[1750530757585,148.0,138.85,138.8,9.09419666]
[1750530757734,148.0,138.85,138.84,9.09419666]
[1750530758069,148.74,138.85,138.79,18.64964886]
[1750530758268,148.74,138.85,138.82,9.09419666]
[1750530758435,148.74,138.85,138.83,9.09419666]
[1750530759025,148.74,138.85,138.84,7.20253529]
[1750530759673,148.74,138.85,138.79,18.64964886]
[1750530759674,0.74,138.84,138.79,22.59932671]
[1750530759845,148.0,138.83,138.8,9.09419666]
[1750530760051,148.0,138.83,138.8,27.10572403]
[1750530760452,148.74,138.83,138.81,9.09419666]
[1750530760641,148.0,138.83,138.81,9.09419666]
[1750530761038,148.74,138.83,138.82,7.20357297]
[1750530762233,148.0,138.83,138.82,7.20357297]
[1750530762439,148.0,138.83,138.82,16.29776963]
[1750530762663,148.0,138.83,138.82,7.20357297]
[1750530763172,148.0,138.83,138.82,16.29776963]
[1750530763376,26.0,138.87,138.82,52.95635092]
[1750530763676,0.74,138.86,138.83,9.09419666]
[1750530763845,0.74,138.86,138.84,9.09419666]
[1750530764037,0.74,138.87,138.84,9.09419666]
[1750530764458,174.73,138.88,138.85,9.09419666]
[1750530764647,174.73,138.88,138.83,18.64964886]
[1750530764847,174.73,138.88,138.85,9.09419666]
[1750530765263,174.73,138.88,138.86,7.20149791]
[1750530766566,0.73,138.87,138.86,7.20149791]
[1750530767480,0.73,138.87,138.85,25.20665249]
[1750530768880,0.73,138.86,138.85,7.20201656]
[1750530769046,9.82419666,138.86,138.85,7.20201656]
[1750530769869,9.82419666,138.86,138.83,25.21063281]
[1750530769870,26.0,138.86,138.83,25.21063281]
[1750530770070,0.73,138.85,138.83,25.21063281]
[1750530771106,148.0,138.84,138.83,7.20305409]
[1750530771258,157.82419666,138.84,138.83,7.20305409]
[1750530771575,148.73,138.84,138.83,7.20305409]
[1750530771881,148.73,138.84,138.8,33.38479976]
[1750530771882,0.73,138.83,138.81,7.20409192]
[1750530772195,9.82419666,138.82,138.81,7.20409192]
[1750530772490,0.73,138.81,138.8,13.48443077]
[1750530772687,35.82419666,138.81,138.8,13.48443077]
[1750530773359,26.73,138.81,138.8,13.48443077]
[1750530773574,26.0,138.81,138.8,13.48443077]
[1750530774372,148.0,138.83,138.8,31.49595814]
[1750530774587,157.09419666,138.86,138.82,9.09419666]
[1750530774753,157.09419666,138.86,138.81,9.09419666]
[1750530774970,35.09419666,138.85,138.81,9.09419666]
[1750530775302,0.73,138.84,138.81,9.09419666]
[1750530775593,26.73,138.85,138.81,9.09419666]
[1750530775805,26.73,138.85,138.82,9.09419666]
[1750530776179,26.0,138.85,138.83,7.20305409]
[1750530776391,0.73,138.84,138.83,7.20305409]
[1750530777507,0.73,138.84,138.82,25.212085]
[1750530777704,26.0,138.85,138.82,25.212085]
[1750530778005,26.73,138.85,138.82,40.35233689]
[1750530779405,26.73,138.85,138.82,18.00851203]
[1750530779992,41.14025189,138.85,138.82,18.00851203]
[1750530780300,15.14025189,138.84,138.81,7.20409192]
[1750530780498,0.73,138.82,138.81,7.20409192]
[1750530781074,0.73,138.83,138.81,7.20409192]
[1750530781470,15.87025189,138.82,138.81,7.20409192]
[1750530782398,26.73,138.82,138.81,7.20409192]
[1750530786808,0.73,138.82,138.81,7.20409192]
[1750530788628,148.73,138.81,138.8,13.48437475]
[1750530788912,163.87025189,138.81,138.8,7.20437475]
[1750530789288,163.87025189,138.81,138.76,15.14025189]
[1750530789289,0.73,138.8,138.77,7.20616848]
[1750530789493,163.14025189,138.79,138.77,7.20616848]
[1750530789814,148.0,138.79,138.77,22.34642037]
[1750530791332,148.0,138.84,138.78,63.18990075]
[1750530791538,148.0,138.84,138.83,15.14025189]
[1750530791697,148.0,138.84,138.82,15.14025189]
[1750530793314,148.0,138.84,138.83,7.20305409]
[1750530795520,148.0,138.84,138.82,7.20357297]
[1750530795740,148.69,138.84,138.82,7.20357297]
[1750530795897,15.83025189,138.83,138.82,7.20357297]
[1750530796332,163.14025189,138.84,138.82,7.20357297]
[1750530796503,163.83025189,138.84,138.82,7.20357297]
[1750530796919,0.69,138.83,138.82,7.20357297]
[1750530801640,0.69,138.82,138.81,13.48388229]
[1750530801845,15.16040303,138.82,138.81,13.48388229]
[1750530802217,9.77578061,138.82,138.81,7.20388229]
[1750530802635,15.16109285,138.82,138.79,18.01266329]
[1750530802841,0.69,138.79,138.78,7.20564922]
[1750530803130,9.77578061,138.79,138.78,7.20564922]
[1750530803746,15.16068712,138.79,138.78,7.20564922]
[1750530805467,0.69,138.78,138.77,6.28]
[1750530805620,15.16068712,138.78,138.77,6.28]
[1750530805942,0.69,138.77,138.76,7.20648221]
[1750530806316,9.77578061,138.77,138.76,7.20648221]
[1750530806634,9.08578061,138.78,138.76,7.20648221]
[1750530806937,9.77578061,138.78,138.76,7.20648221]
[1750530807314,9.77578061,138.78,138.75,7.2072072]
[1750530807748,9.08578061,138.76,138.75,7.2072072]
[1750530808045,9.77578061,138.77,138.75,7.2072072]
[1750530808918,0.69,138.79,138.74,25.22691167]
[1750530809119,9.08578061,138.77,138.74,25.22691167]
[1750530810238,9.08578061,138.79,138.74,34.31269228]
[1750530810437,9.08578061,138.78,138.74,34.31269228]
[1750530810615,0.69,138.77,138.74,34.31269228]
[1750530810940,9.77578061,138.77,138.74,25.22691167]
[1750530811139,0.69,138.76,138.74,7.20772668]
[1750530811338,0.69,138.75,138.74,7.20772668]
[1750530811647,9.08578061,138.76,138.74,7.20772668]
[1750530812221,9.08578061,138.78,138.74,34.31282399]
[1750530812426,157.77578061,138.79,138.74,34.31282399]
[1750530812945,157.77578061,138.79,138.75,9.08578061]
[1750530813512,157.77578061,138.79,138.76,7.2066878]
[1750530814838,0.69,138.78,138.76,7.2066878]
[1750530815043,0.69,138.78,138.74,34.31282399]
[1750530815543,148.69,138.79,138.75,9.08578061]
[1750530815742,148.0,138.79,138.77,9.08578061]
[1750530815921,0.69,138.78,138.74,25.22704338]
[1750530816245,9.08578061,138.78,138.74,34.31282399]
[1750530816440,9.77578061,138.78,138.74,34.31282399]
[1750530818832,9.77578061,138.78,138.74,25.22704338]
[1750530819031,0.69,138.77,138.74,34.31282399]
[1750530819226,9.08578061,138.78,138.74,34.31282399]
[1750530819436,148.0,138.79,138.75,9.08578061]
[1750530819947,148.69,138.79,138.75,9.08578061]
[1750530820829,148.69,138.79,138.76,25.22340731]
[1750530821335,157.77578061,138.79,138.76,25.22340731]
[1750530822444,0.69,138.83,138.78,9.08578061]
[1750530822633,148.0,138.84,138.82,9.08578061]
[1750530822634,148.69,138.84,138.82,9.08578061]
[1750530822828,148.69,138.84,138.81,9.08578061]
[1750530823441,148.0,138.84,138.81,9.08578061]
[1750530823645,0.69,138.83,138.81,9.08578061]
[1750530823849,0.69,138.83,138.82,7.20357297]
[1750530824356,148.75,138.84,138.82,7.20357297]
[1750530824734,148.0,138.84,138.83,9.08578061]
[1750530825154,0.75,138.9,138.83,27.73542947]
[1750530825332,26.75,138.88,138.84,9.08578061]
[1750530825662,0.75,138.87,138.84,9.08578061]
[1750530825835,0.75,138.87,138.85,7.20201656]
[1750530826353,9.83578061,138.86,138.85,7.20201656]
[1750530827472,9.83578061,138.86,138.82,25.2125054]
[1750530827647,0.75,138.85,138.82,25.2125054]
[1750530830461,26.0,138.86,138.83,9.08578061]
[1750530830642,26.0,138.86,138.84,9.08578061]
[1750530830849,26.0,138.86,138.83,27.73542947]
[1750530831651,26.0,138.86,138.84,9.08578061]
[1750530832073,26.0,138.86,138.85,7.20201656]
[1750530833438,0.75,138.85,138.83,7.20305409]
[1750530833644,9.08578061,138.84,138.83,7.20305409]
[1750530834458,148.75,138.85,138.83,7.20305409]
[1750530834766,148.0,138.85,138.83,7.20305409]
[1750530835742,0.75,138.84,138.83,7.20305409]
[1750530836866,157.08578061,138.85,138.83,7.20305409]
[1750530837046,157.83578061,138.85,138.83,7.20305409]
[1750530837666,157.83578061,138.85,138.82,25.2125054]
[1750530838042,148.0,138.85,138.82,34.29828601]
[1750530839467,148.75,138.85,138.82,25.2125054]
[1750530839666,148.75,138.85,138.82,27.09471304]
[1750530839878,157.83578061,138.85,138.82,18.00893243]
[1750530840244,148.75,138.85,138.82,27.09471304]
[1750530840463,148.0,138.85,138.82,27.09471304]
[1750530840654,148.0,138.85,138.83,9.08578061]
[1750530840949,26.0,138.87,138.83,27.73542947]
[1750530841170,26.0,138.87,138.84,9.08578061]
[1750530841678,9.08578061,138.86,138.82,25.2125054]
[1750530841841,9.83578061,138.83,138.82,7.20357297]
[1750530843076,26.75,138.83,138.82,7.20357297]
[1750530843290,35.83578061,138.83,138.82,7.20357297]
[1750530843476,0.75,138.82,138.8,7.20461095]
[1750530843648,26.0,138.78,138.73,7.693]
[1750530843853,9.83578061,138.76,138.74,25.22699884]
[1750530844980,9.83578061,138.76,138.74,18.01927216]
[1750530845361,9.08578061,138.75,138.73,7.20824623]
[1750530845577,9.83578061,138.74,138.73,7.20824623]
[1750530847080,15.91657077,138.74,138.73,7.20824623]
[1750530852276,26.0,138.74,138.73,7.20824623]
[1750530852454,15.16657077,138.75,138.73,7.20824623]
[1750530853463,41.16657077,138.76,138.73,7.20824623]
[1750530853660,41.16657077,138.76,138.73,25.22886181]
[1750530854056,163.16657077,138.77,138.73,40.39543258]
[1750530854256,163.88657077,138.77,138.73,40.39543258]
[1750530854464,0.72,138.75,138.73,25.22886181]
[1750530856081,15.88657077,138.76,138.73,25.22886181]
[1750530857585,15.16657077,138.75,138.73,25.22886181]
[1750530857799,15.88657077,138.74,138.73,25.22886181]
[1750530857962,41.88657077,138.74,138.73,7.20824623]
[1750530860585,15.88657077,138.74,138.73,7.20824623]
[1750530861886,0.72,138.74,138.73,7.20824623]
[1750530862185,15.88657077,138.74,138.73,7.20824623]
[1750530862488,15.16657077,138.75,138.73,7.20824623]
[1750530862688,0.72,138.76,138.73,7.20824623]
[1750530862689,15.88657077,138.76,138.73,7.20824623]
[1750530863283,15.88657077,138.76,138.73,25.22886181]
[1750530863567,15.16657077,138.75,138.73,25.22886181]
[1750530863789,15.88657077,138.75,138.73,25.22886181]
[1750530864293,15.16657077,138.76,138.73,25.22886181]
[1750530865890,189.16657077,138.77,138.73,25.22886181]
[1750530866104,189.88657077,138.77,138.73,25.22886181]
[1750530867199,189.16657077,138.77,138.73,40.39543258]
[1750530867365,174.0,138.77,138.74,15.16657077]
[1750530867564,174.72,138.77,138.73,40.39543258]
[1750530867791,189.88657077,138.77,138.73,40.39543258]
[1750530867986,148.0,138.77,138.73,40.39543258]
[1750530868268,148.0,138.77,138.74,15.16657077]
[1750530868998,148.0,138.77,138.75,9.09347383]
[1750530869204,148.0,138.77,138.76,9.09347383]
[1750530869374,0.72,138.8,138.76,9.09347383]
[1750530870898,0.72,138.8,138.77,25.22158968]
[1750530871204,174.72,138.81,138.78,9.09347383]
[1750530872813,148.0,138.81,138.79,7.20513005]
[1750530874222,148.72,138.81,138.79,7.20513005]
[1750530879413,148.0,138.81,138.79,16.29860388]
[1750530879641,0.72,138.84,138.8,9.09347383]
[1750530879923,0.72,138.84,138.79,87.24360544]
[1750530879924,148.0,138.85,138.83,9.09347383]
[1750530880285,148.0,138.85,138.84,9.09347383]
[1750530880927,148.72,138.88,138.84,9.09347383]
[1750530881138,148.0,138.88,138.85,34.3005318]
[1750530881294,0.72,138.87,138.85,25.20705797]
[1750530881493,0.72,138.86,138.85,25.20705797]
[1750530881892,0.72,138.86,138.85,7.20201656]
[1750530883400,0.72,138.86,138.84,6.28]
[1750530883401,148.0,138.88,138.84,6.28]
[1750530883600,9.81347383,138.85,138.8,7.20461095]
[1750530883810,9.09347383,138.83,138.8,7.20461095]
[1750530884017,9.81347383,138.82,138.8,7.20461095]
[1750530884418,0.72,138.82,138.8,7.20461095]
[1750530884929,9.82347383,138.81,138.79,7.20513005]
[1750530886694,0.73,138.81,138.79,7.20513005]
[1750530887727,9.82347383,138.81,138.79,7.20513005]
[1750530888809,148.0,138.85,138.79,7.20513005]
[1750530888810,148.0,138.85,138.8,27.74312269]
[1750530889127,148.0,138.85,138.82,9.09347383]
[1750530890309,148.0,138.85,138.83,7.20305409]
[1750530890725,148.0,138.85,138.84,9.09347383]
[1750530891435,148.0,138.85,138.83,16.29652792]
[1750530892840,148.0,138.85,138.83,7.20305409]
[1750530893036,148.0,138.85,138.83,16.29652792]
[1750530895144,148.0,138.85,138.83,7.20305409]
[1750530895346,148.0,138.85,138.84,9.09347383]
[1750530895709,26.0,138.86,138.84,9.09347383]
[1750530896637,26.0,138.86,138.85,7.20201656]
[1750530897945,148.73,138.88,138.85,34.3005318]
[1750530898145,35.09347383,138.86,138.8,7.20461095]
[1750530898322,0.73,138.84,138.81,9.09347383]
[1750530898653,0.73,138.84,138.82,7.20357297]
[1750530898835,0.73,138.83,138.82,7.20357297]
[1750530900435,0.73,138.83,138.81,7.20409192]
[1750530900951,35.09347383,138.83,138.81,7.20409192]
[1750530901150,26.73,138.82,138.81,7.20409192]
[1750530902046,0.73,138.82,138.81,7.20409192]
[1750530902676,0.73,138.82,138.8,7.20461095]
[1750530902842,9.09347383,138.82,138.8,7.20461095]
[1750530903041,0.73,138.81,138.8,7.20461095]
[1750530904771,0.73,138.8,138.79,7.20513005]
[1750530904975,35.82347383,138.8,138.79,7.20513005]
[1750530906543,5.35576137,138.82,138.79,25.21795518]
[1750530906755,9.82347383,138.83,138.79,34.31142901]
[1750530907054,148.73,138.84,138.81,9.09347383]
[1750530907362,0.73,138.83,138.8,27.74312269]
[1750530908277,0.73,138.83,138.8,9.09347383]
[1750530909371,0.73,138.83,138.79,54.59795518]
[1750530909574,0.73,138.83,138.79,63.69142901]
[1750530909575,0.73,138.82,138.79,63.69142901]
[1750530910381,157.09347383,138.84,138.79,63.69142901]
[1750530910564,0.73,138.83,138.79,63.69142901]
[1750530911287,26.0,138.85,138.82,9.09347383]
[1750530911583,26.73,138.85,138.83,7.20305409]
[1750530912776,35.82347383,138.85,138.83,7.20305409]
[1750530913376,35.82347383,138.85,138.82,25.21207034]
[1750530913752,26.73,138.85,138.82,25.21207034]
[1750530917283,26.0,138.85,138.82,25.21207034]
[1750530917493,35.82347383,138.87,138.83,9.09347383]
[1750530917702,174.73,138.87,138.83,9.09347383]
[1750530917893,0.73,138.86,138.83,9.09347383]
[1750530918378,174.73,138.87,138.84,25.20887352]
[1750530918695,174.73,138.87,138.84,34.30234735]
[1750530918887,174.0,138.87,138.84,34.30234735]
[1750530919882,174.0,138.87,138.85,9.09347383]
[1750530920197,148.0,138.87,138.85,9.09347383]
[1750530920773,26.0,138.87,138.86,9.09347383]
[1750530921400,26.0,138.87,138.85,57.12312269]
[1750530921903,35.09347383,138.87,138.84,31.48887352]
[1750530922077,0.73,138.85,138.84,13.48253529]
[1750530923402,9.82347383,138.85,138.84,13.48253529]
[1750530925189,0.73,138.85,138.84,13.48253529]
[1750530927313,35.82347383,138.86,138.84,13.48253529]
[1750530927499,26.73,138.86,138.84,13.48253529]
[1750530928415,174.73,138.86,138.84,13.48253529]
[1750530928985,0.73,138.85,138.84,13.48253529]
[1750530931013,174.0,138.86,138.84,13.48253529]